Cogmind - Beta 12 @@@ ROGUE MODE // 2023.08.22 @ 16:12:44 Player: Rohain Result: Destroyed by G-47 Trooper with Particle Gun Performance ------------- Evolutions (2) 1000 Regions Visited (4) 800 Robots Destroyed (34) 170 Value Destroyed (1046) 1046 Prototype IDs (3) 60 Alien Tech Used (0) 0 Bonus (401) 401 TOTAL SCORE: 3477 Bonus ------- High Alert Combat Kills 86 Follower Combat Kills 315 Cogmind --------- Core Integrity 0/550 Matter 300/300 Energy 100/100 System Corruption 4% Temperature Danger (414) Movement Core (350) Ox6 Location -8/Materials Parts ------- > --- POWER (1) -------- (None) > --- PROPULSION (4) --- (None) > --- UTILITY (3) ------ Large Storage Unit > --- WEAPON (3) ------- (None) > --- INVENTORY (15) --- Ion Engine Improved Ion Engine Light Nuclear Core Aluminum Leg Aluminum Leg Aluminum Leg Aluminum Leg Compact Wheel Spread Laser Peak State ------------ > --- POWER ------------ Light Deuterium Engine > --- PROPULSION ------- Aluminum Leg Aluminum Leg Improved Aluminum Leg Carbon-fiber Leg > --- UTILITY ---------- Improved Heat Sink Large Storage Unit Light Armor Plating > --- WEAPON ----------- Heavy Laser Heavy Laser Heavy Laser > --- INVENTORY -------- Ion Engine Improved Ion Engine Light Nuclear Core Aluminum Leg Aluminum Leg Aluminum Leg Aluminum Leg Aluminum Leg Aluminum Leg Compact Wheel Medium Laser Beam Rifle Beam Rifle Spread Laser Heavy Laser [Rating: 29] Favorites ----------- Power Light Nuclear Core Engine Ion Engine Power Core Light Nuclear Core Propulsion Aluminum Leg Leg Aluminum Leg Utility Heat Sink Device Heat Sink Storage Large Storage Unit Protection Light Armor Plating Weapon Medium Laser Energy Gun Medium Laser Ballistic Cannon Improved Light Cannon Build | -11 -10 -9 -9 -8 ------- Run | Jun Mat Mat Sto Mat Slots Evolved 4 | . . 2 . 2 Power . | . . . . . Propulsion 2 | . . 2 . . Utility 1 | . . . . 1 Weapon 1 | . . . . 1 Parts Attached 63 | 6 11 12 13 21 Power 8 | 1 1 2 2 2 Engine 7 | 1 1 1 2 2 Core 1 | . . 1 . . Reactor . | . . . . . Propulsion 19 | 2 2 4 5 6 Treads . | . . . . . Leg 19 | 2 2 4 5 6 Wheel . | . . . . . Hover . | . . . . . Flight . | . . . . . Utility 11 | 1 4 2 1 3 Device 4 | . 1 1 1 1 Storage 5 | 1 3 1 . . Processor . | . . . . . Hackware . | . . . . . Protection 2 | . . . . 2 Artifact . | . . . . . Weapon 25 | 2 4 4 5 10 Energy Gun 23 | 2 2 4 5 10 Energy Cannon . | . . . . . Ballistic Gun . | . . . . . Ballistic Cannon 2 | . 2 . . . Launcher . | . . . . . Special Weapon . | . . . . . Impact Weapon . | . . . . . Slashing Weapon . | . . . . . Piercing Weapon . | . . . . . Special Melee Weapon . | . . . . . Unidentified Prototypes 3 | . . 1 . 2 Parts Lost 17 | . 1 2 . 14 Power 3 | . 1 1 . 1 Propulsion 7 | . . 1 . 6 Utility 2 | . . . . 2 Weapon 5 | . . . . 5 Highest Loss Streak 14 | . 1 2 . 14 To Critical Strikes . | . . . . . Average Slot Usage (%) 94 | . 85 94 100 94 Engine 6 | . 12 3 3 9 Core 3 | . . 6 7 . Leg 36 | . 28 38 44 35 Device 8 | . 1 11 11 7 Storage 11 | . 14 11 11 9 Protection 1 | . . . . 7 Energy Gun 21 | . 15 22 22 25 Ballistic Cannon 2 | . 12 . . . Naked Turns . | . . . . . Heaviest Build 43 | 11 20 31 33 43 Greatest Support 48 | 20 20 40 40 48 Greatest Overweight (x) 6 | . . . . 6 Average Overweight (x) . | . . . . . Largest Inventory Capacity 15 | 8 10 15 15 15 Average Capacity 12 | 6 9 10 15 15 Most Carried 15 | 4 8 9 15 15 Average Carried 9 | 1 5 5 13 13 Final Capacity 15 | 8 10 15 15 15 Final Carried 15 | 1 5 9 15 9 Class Distribution -------------------- 39% | Scavenger-Mutant 36% | Mutant 17% | Scavenger-Tank 4% | Commander-Mutant Dominant Class ---------------- Mutant | -10/Materials Scavenger-Mutant | -9/Materials Scavenger-Mutant | -9/Storage Scavenger-Tank | -8/Materials Resources | -11 -10 -9 -9 -8 ----------- Run | Jun Mat Mat Sto Mat Matter Collected 968 | 181 225 269 110 183 Remotely . | . . . . . Salvage Created 1145 | . 168 419 261 297 Parts 56 | . 9 14 15 18 Haulers Intercepted 1 | . 1 . . . Recyclers Shooed 2 | . 1 . . 1 Parts Field Recycled . | . . . . . Retrieved Matter . | . . . . . Parts Self-Destructed . | . . . . . Prevented . | . . . . . Kills | -11 -10 -9 -9 -8 ------- Run | Jun Mat Mat Sto Mat Combat Hostiles Destroyed 31 | . 8 10 5 8 Guns 21 | . 1 7 5 8 Cannons 7 | . 7 . . . Classes Destroyed 6 | . 3 1 1 1 Hauler 1 | . 1 . . . Watcher 2 | . . . 1 1 Swarmer 9 | . 3 2 . 4 Grunt 15 | . 5 6 2 2 Sentry 6 | . . 2 3 1 Hunter 1 | . . . . 1 Best Kill Streak 6 | . 6 3 4 4 Combat Bots Only 6 | . 6 3 3 4 Max Kills in Single Turn 1 | . 1 1 1 1 Gunslinging . | . . . . . Exploded . | . . . . . Melee . | . . . . . Uniques/NPCs Destroyed . | . . . . . Combat | -11 -10 -9 -9 -8 -------- Run | Jun Mat Mat Sto Mat Damage Taken 3024 | . 424 502 178 1920 Core 786 | . 152 47 30 557 Absorbed by Shields . | . . . . . Core Remaining (%) 73 | 100 39 . 80 . Volleys Fired 119 | . 30 31 18 40 Largest 3 | . 2 2 2 3 Hottest 207 | . 100 106 130 207 Shots Fired 233 | . 56 62 36 79 Gun 183 | . 6 62 36 79 Cannon 50 | . 50 . . . Launcher . | . . . . . Special . | . . . . . Kinetic 50 | . 50 . . . Thermal 183 | . 6 62 36 79 Explosive . | . . . . . Electromagnetic . | . . . . . Robot Hit Streak 12 | . 7 12 5 6 Robot Miss Streak 7 | . 7 3 3 4 Penetration Max . | . . . . . Secondary Targets 2 | . . 1 . 1 Max Gunslinging Chain 1 | . . 1 . 1 Shots Hit Robots 143 | . 34 47 17 45 Core Hits 57 | . 12 17 12 16 Critical Kills . | . . . . . Critical Parts Destroyed . | . . . . . Critical Strikes 8 | . . 5 2 1 Burn 8 | . . 5 2 1 Melee Attacks . | . . . . . Impact . | . . . . . Slashing . | . . . . . Piercing . | . . . . . Sneak Attacks . | . . . . . Combat Hostiles . | . . . . . Follow-up Attacks . | . . . . . Damage Inflicted 2492 | . 728 638 278 848 Guns 1841 | . 81 638 278 844 Cannons 647 | . 647 . . . Explosions . | . . . . . Melee . | . . . . . Ramming 4 | . . . . 4 Kinetic 647 | . 647 . . . Thermal 1841 | . 81 638 278 844 Explosive . | . . . . . Electromagnetic . | . . . . . Impact . | . . . . . Slashing . | . . . . . Piercing . | . . . . . Highest Corruption 4 | . . . . 4 Average Corruption 4 | . . . . 4 Corruption Purged . | . . . . . Corruption Blocked . | . . . . . Effects 10 | . . . . 10 Message Errors 1 | . . . . 1 Matter Fused 1 | . . . . 1 Heat Flow Errors 1 | . . . . 1 Energy Discharges 1 | . . . . 1 Parts Rejected 1 | . . . . 1 Data Loss (minor) 1 | . . . . 1 Alerts 1 | . . . . 1 Weapon Failures 3 | . . . . 3 Overload Shots . | . . . . . Overflow Damage 3 | . 3 . . . Projectiles 3 | . 3 . . . Explosions . | . . . . . Melee . | . . . . . Knockbacks 1 | . 1 . . . Impact . | . . . . . Kinetic 1 | . 1 . . . Secondary . | . . . . . Self-Inflicted Damage . | . . . . . Shots . | . . . . . Rammed . | . . . . . Targets Rammed 1 | . . . . 1 Kicked 1 | . . . . 1 Crushed . | . . . . . Highest Temperature 449 | . 252 88 72 449 Average Temperature 104 | . 86 42 17 178 Received Heat Transfer 813 | . 129 225 54 405 Effects 2 | . 1 . . 1 Shutdowns 1 | . . . . 1 Interference 1 | . 1 . . . Siege Activations . | . . . . . Robots Corrupted . | . . . . . Combat Hostiles . | . . . . . Parts Fried . | . . . . . Impact Corruptions . | . . . . . Robots Melted 3 | . . 3 . . Combat Hostiles 3 | . . 3 . . Parts Melted 13 | . 1 4 1 7 Heat Transferred 5099 | . 222 2146 844 1887 Parts Sabotaged . | . . . . . Parts Stolen . | . . . . . Parts Stripped . | . . . . . Power Chain Reactions . | . . . . . Missiles Intercepted . | . . . . . Alert | -11 -10 -9 -9 -8 ------- Run | Jun Mat Mat Sto Mat Peak Influence 581 | . 235 358 581 514 Initial 182 | . . 98 85 182 Average 250 | . 143 207 368 298 Maximum Alert Level 2 | . 1 1 2 2 Low Security (%) 45 | 100 89 49 15 30 Level 1 36 | . 10 50 32 52 Level 2 17 | . . . 51 16 Level 3 . | . . . . . Level 4 . | . . . . . Level 5 . | . . . . . High Security . | . . . . . Max Security . | . . . . . Squads Dispatched 5 | . 1 . 2 2 Investigation 2 | . . . 2 . Extermination . | . . . . . Reinforcement 3 | . 1 . . 2 Assault . | . . . . . Garrison . | . . . . . Intercept . | . . . . . Searches Triggered . | . . . . . Construction Impeded . | . . . . . Haulers Reinforced . | . . . . . Active Scanning Responses . | . . . . . Cargo Convoy Interrupts . | . . . . . Stealth | -11 -10 -9 -9 -8 --------- Run | Jun Mat Mat Sto Mat Distress Signals 3 | . . 1 1 1 Communications Jammed . | . . . . . Distress Signals . | . . . . . Times Spotted 65 | . 11 16 18 20 Peak Tracking Total 8 | . 4 6 4 8 Tactical Retreats 5 | . . 3 . 2 Traps | -11 -10 -9 -9 -8 ------- Run | Jun Mat Mat Sto Mat Traps Triggered 1 | . . . 1 . Indirectly . | . . . . . Trap Hack Attempts . | . . . . . Triggered . | . . . . . Disarmed . | . . . . . Reprogrammed . | . . . . . Reused . | . . . . . Traps Extracted . | . . . . . Installed . | . . . . . Triggered . | . . . . . Machines | -11 -10 -9 -9 -8 ---------- Run | Jun Mat Mat Sto Mat Machines Disabled . | . . . . . Max in Single Turn . | . . . . . Machines Repaired . | . . . . . Machines Sabotaged . | . . . . . Overloaded Fab Kills . | . . . . . Hacking | -11 -10 -9 -9 -8 --------- Run | Jun Mat Mat Sto Mat Machines Accessed 6 | . 2 1 3 . Terminals 6 | . 2 1 3 . Fabricators . | . . . . . Repair Stations . | . . . . . Recycling Units . | . . . . . Scanalyzers . | . . . . . Garrison Access . | . . . . . Total Hacks 14 | . 4 3 7 . Successful 9 | . 3 1 5 . Failed 5 | . 1 2 2 . Catastrophic . | . . . . . Database Lockouts . | . . . . . Manual 14 | . 4 3 7 . Terminals 14 | . 4 3 7 . Fabricators . | . . . . . Repair Stations . | . . . . . Recycling Units . | . . . . . Scanalyzers . | . . . . . Garrison Access . | . . . . . Terminal Hacks 3 | . 1 . 2 . Robot Analysis 2 | . 1 . 1 . Zone Layout 1 | . . . 1 . Fabricator Hacks . | . . . . . Repair Station Hacks . | . . . . . Recycling Unit Hacks . | . . . . . Scanalyzer . | . . . . . Garrison Access Hacks . | . . . . . Unauthorized Hacks 6 | . 2 1 3 . Terminals 6 | . 2 1 3 . Botnet 6 | . 2 1 3 . Fabricators . | . . . . . Repair Stations . | . . . . . Recycling Units . | . . . . . Scanalyzers . | . . . . . Garrison Access . | . . . . . Data Cores Recovered . | . . . . . Used . | . . . . . Hacking Detections 5 | . 2 1 2 . Full Trace Events . | . . . . . Feedback Events . | . . . . . Feedback Blocked . | . . . . . Robot Schematics Acquired . | . . . . . Robots Built . | . . . . . Authchips . | . . . . . Time . | . . . . . Total Robot Build Rating . | . . . . . Part Schematics Acquired . | . . . . . Parts Built . | . . . . . Authchips . | . . . . . Time . | . . . . . Total Part Build Rating . | . . . . . Parts Repaired . | . . . . . Time . | . . . . . Parts Recycled . | . . . . . Recycled Matter . | . . . . . Retrieved Matter . | . . . . . Retrieved Components . | . . . . . Parts Scanalyzed . | . . . . . Part Schematics Acquired . | . . . . . Parts Damaged . | . . . . . Bothacking | -11 -10 -9 -9 -8 ------------ Run | Jun Mat Mat Sto Mat Used RIF Installer . | . . . . . Robots Hacked . | . . . . . Non-combat . | . . . . . Combat . | . . . . . Robot Hacks Applied . | . . . . . Relay Couplers Released . | . . . . . Fabnet Peak Effective % . | . . . . . Robots Rewired . | . . . . . Allies Hacked . | . . . . . Hacks Repelled . | . . . . . Allies | -11 -10 -9 -9 -8 -------- Run | Jun Mat Mat Sto Mat Total Allies 10 | . . . 10 . Largest Group 10 | . . . 10 3 Highest-Rated Group 88 | . . . 88 21 Highest-Rated Ally 16 | . . . 16 8 Total Orders . | . . . . . Ally Attacks 101 | . . . 82 19 Total Damage 946 | . . . 781 165 Kills 18 | . . . 15 3 Allies Corrupted . | . . . . . Allies Melted . | . . . . . Intel | -11 -10 -9 -9 -8 ------- Run | Jun Mat Mat Sto Mat Robot Analysis Total 2 | . 1 . 1 . Derelict Logs Recovered . | . . . . . Drone Launches . | . . . . . Drone Recoveries . | . . . . . Exploration | -11 -10 -9 -9 -8 ------------- Run | Jun Mat Mat Sto Mat Turns Passed 1848 | 65 365 488 464 466 Spaces Moved 1098 | 49 207 290 305 247 Core 7 | 6 . . . 1 Treads . | . . . . . Legs 1091 | 43 207 290 305 246 Wheels . | . . . . . Hover . | . . . . . Flight . | . . . . . Fastest Speed 50 | 50 120 120 120 120 Average Speed 121 | 111 120 120 120 128 Slowest Speed 350 | 120 120 120 120 350 Overloaded Moves . | . . . . . Propulsion Burnouts . | . . . . . Robots Hopped . | . . . . . Cave-ins Triggered . | . . . . . Exploration Rate (%) 30 | 3 50 23 49 28 Regions Visited 4 Branch Regions 1 Pre-discovered Areas . | . . . . . Known Exits Taken . | . . . . . Unknown Exits Taken 4 | 1 1 1 1 . Scrap Searched . | . . . . . Spaces Dug . | . . . . . Terrain Destroyed 2 | . 2 . . . Melee . | . . . . . Projectile 2 | . 2 . . . AOE . | . . . . . Terrain Rammed . | . . . . . Walls Destroyed . | . . . . . Machines Disabled . | . . . . . Actions | -11 -10 -9 -9 -8 --------- Run | Jun Mat Mat Sto Mat Total 1388 | 58 270 364 366 330 Wait 61 | . 5 29 19 8 Move 1094 | 48 206 289 304 247 Hop . | . . . . . Pick Up 16 | 4 7 . 3 2 Fast Attach 16 | 3 4 5 1 3 Attach 20 | 3 5 2 . 10 Detach 6 | . 4 1 1 . Swap 27 | . 2 5 12 8 Drop 28 | . 7 2 8 11 Fire 119 | . 30 31 18 40 Melee . | . . . . . Ram . | . . . . . Kick 1 | . . . . 1 Crush . | . . . . . Escape Stasis . | . . . . . Rewire . | . . . . . Trap . | . . . . . Miscellaneous . | . . . . . Route ------- -11/Junkyard -10/Materials (discovered 2 exits: *Mat / [*Min]) -9/Materials -9/Storage -8/Materials History --------- Turn | Location | Event 10 | -11/Junkyard | Discovered new exit (range 16) 66 | -11/Junkyard | Entered Materials 187 | -10/Materials | Core integrity fell below 50% 314 | -10/Materials | Build established: Mutant 333 | -10/Materials | Discovered new exit (range 6) 416 | -10/Materials | Discovered new exit (range 11) 431 | -10/Materials | Entered another Materials area 431 | -9/Materials | Evolved 2 slots: Propulsion x2 432 | -9/Materials | Discovered new exit (range 8) 919 | -9/Materials | Entered Storage 926 | -9/Storage | Build established: Scavenger-Mutant 929 | -9/Storage | Assisted by bots powering up and referring to "LRC-V3" 1355 | -9/Storage | Discovered new exit (range 13) 1383 | -9/Storage | Entered Materials 1383 | -8/Materials | Accompanied by 3 allies 1383 | -8/Materials | Evolved 2 slots: Utility x1, Weapon x1 1810 | -8/Materials | Core integrity fell below 50% 1842 | -8/Materials | Core integrity fell below 20% 1849 | -8/Materials | Destroyed by G-47 Trooper with Particle Gun Last Messages --------------- 01829_ K-01 Serf collects debris. 01831_ Penetrated by Slug. 01831_ Aluminum Leg destroyed. 01831_ Knocked back. 01831_ Slug penetrates Door. 01831_ K-01 Serf collects debris. 01832_ Penetrated by Slug. 01832_ Aluminum Leg destroyed. 01835_ Penetrated by Slug. 01836_ Med. Laser destroyed. 01838_ Power failure, Lgt. Deuterium Engine shutdown. 01838_ Penetrated by Slug. 01838_ Aluminum Leg destroyed. 01841_ Critical hit (Burn: +37). 01841_ Penetrated by Slug. 01842_ Carbon-fiber Leg destroyed. 01844_ Lgt. Deuterium Engine destroyed. 01845_ Knocked back. 01846_ Penetrated by Slug. 01846_ Beam Rifle destroyed. Map ----- +----------------------------------------------------+ | ?????????????????????????????????????????????????? | | ?????????????????????????????????????????????????? | | ?????????????????????????????????????????????????? | | ?????????????????????????????????????????????????? | | ?????????????????????????????????????????????????? | | ?????????????????????????????????????????????????? | | ?????????????????????????????????????????????????? | | ?????????????????????????????????????????????????? | | ???????????????????????? ??????????????????????? | | ???????????????????????# #?????????????????????? | | ??????????????????????? ?????????????????????? | | ??????????????????????? =?????????????????????? | | ??????????????????????? ?????????????????????? | | ??????????????????????? ?????????????????????? | | ??????????????????????? a ?????????????????????? | | ???????????????????????# #?????????????????????? | | ???????????????????????# ##????????????????????? | | ??????????????????????## ????????????????????? | | ?###?####??????????????; ?????????????????????? | | ?# ? #??????????????; ?????????????????????? | | ?# """ #??????????????# w##????????????????????? | | ?# """ #??????????????# H ;#????????????????????? | | ?# """ #??????????????#% #?????????????????????? | | ?# #??????????????# %#?????????????????????? | | ?# """ !#??????????????#w #?????????????????????? | | ## """ #??????????????# @ #?????????????????????? | | # """ #??????????????# #?????????????????????? | | + ]#??????????????#%% #?????????????????????? | | # """ #########??????#% #?????????????????????? | | # """ # #??????#% #?????????????????????? | | # " # """ ########k k#?????????????????????? | | # # """ # %=#![ #?????????????????????? | | ####+### """ + %%%;%=!##????????????????????? | | # """ # [ % #% #????????????????????? | | + """ # !#% ##????????????????????? | | # # #ggx#?????????????????????? | | ######### # # #?????????????????????? | | ????????# ######## #?????????????????????? | | ????????# #??????# #?????????????????????? | | ????????# #??????# #?????????????????????? | | ????????#########??????# x#?????????????????????? | | ???????????????????????# #?????????????????????? | | ???????????????????????# ?????????????????????? | | ???????????????????????# ?????????????????????? | | ???????????????????????+ ?????????????????????? | | ???????????????????????# ????????????????????? | | ???????????????????????# ##????????????????????? | | ???????????????????????? #?????????????????????? | | ???????????????????????? ??????????????????????? | | ?????????????????????????????????????????????????? | +----------------------------------------------------+ Best States ------------- Heat Dissipation 45 Energy Generation 14 Energy Capacity 265 Matter Stores 300 Matter Capacity 300 Sight Range 16 Terrain Scan Density 10 Armor Coverage 150 Evasion (%) 55 Item Schematics ----------------- None Robot Schematics ------------------ None Fabricated ------------ Nothing Alien Tech Used ----------------- None Achievements -------------- None Challenges ------------ None Game ------ Seed AntimatterBurstThrower Manual? 0 Play Time 00:18:07 Cumulative 45.6 hours Start 2023.08.22 @ 15:58:37 End 2023.08.22 @ 16:12:44 Sessions 1 Manual Loads 0 Difficulty Rogue Special Mode None Game No. 73 Rogue 57 Adventurer 16 Explorer 0 Win Type - Total 1 Types 1/0/0/0/0/0/0/0/0 Lore% 30 Gallery% 49 Achievement% 44 Wizard Run 0 Options --------- ASCII 0 Keyboard 0 Movement Mouse Keybinds 0 Fullscreen 1 Font 18/SmallcapsGlow Map View 76x50 Tactical HUD 1 Map Filters NONE Filters NONE Steam 1 RUN: 7ed7bc30-448b-45eb-b84d-58c78fe59278